[Event "November 21 Early 2023"]
[Site "https://www.chess.com"]
[Date "2023.11.21"]
[Round "10"]
[White "NelsonLinda"]
[Black "Aradhya, Garg"]
[Result "1/2-1/2"]
[Board "53"]
[TimeControl "180+1"]
[BlackFideId "25006746"]
[WhiteElo "2581"]
[BlackElo "2323"]
[BlackTeam "IND"]
[WhiteClock "0:00:07"]
[BlackClock "0:00:20"]

1. b3 {[%clk 0:02:48]}  e5 {[%clk 0:02:58]} 2. Bb2 {[%clk 0:02:48]}  Nc6 {[%clk 0:02:59]} 3. e3 {[%clk 0:02:49]}  Nf6 {[%clk 0:02:56]} 4. c4 {[%clk 0:02:45]}  d5 {[%clk 0:02:55]} 5. cxd5 {[%clk 0:02:45]}  Qxd5 {[%clk 0:02:55]} 6. a3 {[%clk 0:02:46]}  Bf5 {[%clk 0:02:52]} 7. Nc3 {[%clk 0:02:34]}  Qd7 {[%clk 0:02:52]} 8. Rc1 {[%clk 0:02:12]}  O-O-O {[%clk 0:02:47]} 9. Na4 {[%clk 0:01:46]}  Bd3 {[%clk 0:02:20]} 10. Bxd3 {[%clk 0:01:39]}  Qxd3 {[%clk 0:02:21]} 11. Qc2 {[%clk 0:01:39]}  Ne4 {[%clk 0:02:07]} 12. Nf3 {[%clk 0:01:21]}  f6 {[%clk 0:02:07]} 13. Qxd3 {[%clk 0:01:14]}  Rxd3 {[%clk 0:02:06]} 14. Nc3 {[%clk 0:01:06]}  Nc5 {[%clk 0:02:05]} 15. Ke2 {[%clk 0:00:59]}  Rd7 {[%clk 0:02:03]} 16. b4 {[%clk 0:00:57]}  Nd3 {[%clk 0:02:01]} 17. Rb1 {[%clk 0:00:55]}  Be7 {[%clk 0:01:53]} 18. Rhd1 {[%clk 0:00:52]}  Rhd8 {[%clk 0:01:53]} 19. Ne1 {[%clk 0:00:53]}  a6 {[%clk 0:01:30]} 20. Nxd3 {[%clk 0:00:52]}  Rxd3 {[%clk 0:01:31]} 21. Na2 {[%clk 0:00:45]}  R3d5 {[%clk 0:01:10]} 22. Bc3 {[%clk 0:00:44]}  e4 {[%clk 0:01:05]} 23. f3 {[%clk 0:00:40]}  Rg5 {[%clk 0:01:04]} 24. Rg1 {[%clk 0:00:39]}  f5 {[%clk 0:01:03]} 25. f4 {[%clk 0:00:32]}  Rh5 {[%clk 0:01:02]} 26. a4 {[%clk 0:00:24]}  b5 {[%clk 0:00:59]} 27. axb5 {[%clk 0:00:21]}  axb5 {[%clk 0:01:00]} 28. h3 {[%clk 0:00:21]}  g5 {[%clk 0:00:59]} 29. Rbf1 {[%clk 0:00:11]}  Rg8 {[%clk 0:00:58]} 30. g4 {[%clk 0:00:08]}  fxg4 {[%clk 0:00:57]} 31. hxg4 {[%clk 0:00:08]}  Rh2+ {[%clk 0:00:56]} 32. Kd1 {[%clk 0:00:08]}  gxf4 {[%clk 0:00:46]} 33. Rxf4 {[%clk 0:00:09]}  h5 {[%clk 0:00:43]} 34. Rxe4 {[%clk 0:00:06]}  h4 {[%clk 0:00:43]} 35. Nc1 {[%clk 0:00:05]}  h3 {[%clk 0:00:42]} 36. Ne2 {[%clk 0:00:05]}  Rg2 {[%clk 0:00:42]} 37. Rh1 {[%clk 0:00:05]}  h2 {[%clk 0:00:41]} 38. Ke1 {[%clk 0:00:05]}  Bd6 {[%clk 0:00:40]} 39. Kf1 {[%clk 0:00:05]}  R2xg4 {[%clk 0:00:40]} 40. Rxg4 {[%clk 0:00:05]}  Rxg4 {[%clk 0:00:40]} 41. Nf4 {[%clk 0:00:06]}  Bxf4 {[%clk 0:00:40]} 42. exf4 {[%clk 0:00:06]}  Rxf4+ {[%clk 0:00:38]} 43. Kg2 {[%clk 0:00:06]}  Rh4 {[%clk 0:00:26]} 44. Rxh2 {[%clk 0:00:07]}  Rxh2+ {[%clk 0:00:26]} 45. Kxh2 {[%clk 0:00:08]}  Kd7 {[%clk 0:00:27]} 46. Kg3 {[%clk 0:00:08]}  Ke6 {[%clk 0:00:27]} 47. Kf3 {[%clk 0:00:09]}  Kd5 {[%clk 0:00:28]} 48. d3 {[%clk 0:00:08]}  Nd4+ {[%clk 0:00:28]} 49. Ke3 {[%clk 0:00:07]}  Ne6 {[%clk 0:00:28]} 50. Kd2 {[%clk 0:00:06]}  c6 {[%clk 0:00:26]} 51. Ke3 {[%clk 0:00:07]}  Nc7 {[%clk 0:00:25]} 52. Bd2 {[%clk 0:00:06]}  Ne8 {[%clk 0:00:23]} 53. Be1 {[%clk 0:00:05]}  Nd6 {[%clk 0:00:23]} 54. Kd2 {[%clk 0:00:06]}  Nf5 {[%clk 0:00:22]} 55. Kc3 {[%clk 0:00:06]}  Ne3 {[%clk 0:00:22]} 56. Bg3 {[%clk 0:00:05]}  Nd1+ {[%clk 0:00:18]} 57. Kd2 {[%clk 0:00:05]}  Nb2 {[%clk 0:00:18]} 58. Kc2 {[%clk 0:00:04]}  Na4 {[%clk 0:00:19]} 59. Bf2 {[%clk 0:00:05]}  Ke5 {[%clk 0:00:16]} 60. Kb3 {[%clk 0:00:04]}  Kf4 {[%clk 0:00:17]} 61. Kc2 {[%clk 0:00:03]}  Kf3 {[%clk 0:00:17]} 62. Ba7 {[%clk 0:00:04]}  Ke2 {[%clk 0:00:17]} 63. Bd4 {[%clk 0:00:04]}  Kf3 {[%clk 0:00:17]} 64. Ba7 {[%clk 0:00:04]}  Kf4 {[%clk 0:00:17]} 65. Bg1 {[%clk 0:00:05]}  Ke5 {[%clk 0:00:17]} 66. Bf2 {[%clk 0:00:05]}  Kd5 {[%clk 0:00:18]} 67. Bg1 {[%clk 0:00:06]}  Kd6 {[%clk 0:00:18]} 68. Bf2 {[%clk 0:00:06]}  Kc7 {[%clk 0:00:19]} 69. Kb3 {[%clk 0:00:05]}  Nb6 {[%clk 0:00:19]} 70. Bxb6+ {[%clk 0:00:05]}  Kxb6 {[%clk 0:00:20]} 71. Kc3 {[%clk 0:00:06]}  Kc7 {[%clk 0:00:21]} 72. Kd4 {[%clk 0:00:07]}  Kd6 {[%clk 0:00:21]} 73. Ke4 {[%clk 0:00:03]}  Ke6 {[%clk 0:00:20]} 74. d4 {[%clk 0:00:03]}  Kd6 {[%clk 0:00:19]} 75. Ke3 {[%clk 0:00:03]}  Ke6 {[%clk 0:00:19]} 76. Ke4 {[%clk 0:00:03]}  Kd6 {[%clk 0:00:19]} 77. Ke3 {[%clk 0:00:04]}  Kd7 {[%clk 0:00:19]} 78. Ke4 {[%clk 0:00:05]}  Ke6 {[%clk 0:00:20]} 79. Ke3 {[%clk 0:00:05]}  Kf5 {[%clk 0:00:20]} 80. Kf3 {[%clk 0:00:06]}  Kf6 {[%clk 0:00:20]} 81. Kf4 {[%clk 0:00:06]}  Ke6 {[%clk 0:00:20]} 82. Ke4 {[%clk 0:00:07]} 1/2-1/2

[Event "November 21 Early 2023"]
[Site "https://www.chess.com"]
[Date "2023.11.21"]
[Round "10"]
[White "Zakaryan, David"]
[Black "elmusmolamas"]
[Result "1-0"]
[Board "54"]
[TimeControl "180+1"]
[WhiteFideId "24101923"]
[WhiteElo "2323"]
[BlackElo "2566"]
[WhiteTeam "RUS"]
[WhiteClock "0:01:47"]
[BlackClock "0:00:55"]

1. e4 {[%clk 0:03:00]}  c5 {[%clk 0:02:57]} 2. Nf3 {[%clk 0:03:01]}  d6 {[%clk 0:02:57]} 3. d4 {[%clk 0:03:01]}  cxd4 {[%clk 0:02:58]} 4. Nxd4 {[%clk 0:03:02]}  Nf6 {[%clk 0:02:59]} 5. Nc3 {[%clk 0:03:03]}  a6 {[%clk 0:03:00]} 6. h3 {[%clk 0:03:03]}  e6 {[%clk 0:02:58]} 7. g4 {[%clk 0:03:03]}  Be7 {[%clk 0:02:55]} 8. g5 {[%clk 0:02:58]}  Nfd7 {[%clk 0:02:54]} 9. h4 {[%clk 0:02:54]}  Nc6 {[%clk 0:02:55]} 10. Be3 {[%clk 0:02:53]}  Qa5 {[%clk 0:02:47]} 11. Qd2 {[%clk 0:02:50]}  Rb8 {[%clk 0:02:43]} 12. O-O-O {[%clk 0:02:47]}  Nde5 {[%clk 0:02:42]} 13. f4 {[%clk 0:02:38]}  Ng4 {[%clk 0:02:42]} 14. Bg1 {[%clk 0:02:36]}  h5 {[%clk 0:02:43]} 15. Kb1 {[%clk 0:02:31]}  Nxd4 {[%clk 0:02:35]} 16. Qxd4 {[%clk 0:02:25]}  e5 {[%clk 0:02:35]} 17. Qa7 {[%clk 0:02:24]}  O-O {[%clk 0:02:05]} 18. Qxb8 {[%clk 0:02:12]}  exf4 {[%clk 0:02:00]} 19. Nd5 {[%clk 0:02:07]}  Be6 {[%clk 0:01:32]} 20. Nxe7+ {[%clk 0:01:52]}  Kh7 {[%clk 0:01:32]} 21. Qxf8 {[%clk 0:01:49]}  Qxa2+ {[%clk 0:01:33]} 22. Kc1 {[%clk 0:01:50]}  Qa1+ {[%clk 0:01:18]} 23. Kd2 {[%clk 0:01:48]}  Qa5+ {[%clk 0:00:55]} 24. c3 {[%clk 0:01:47]} 1-0

[Event "November 21 Early 2023"]
[Site "https://www.chess.com"]
[Date "2023.11.21"]
[Round "10"]
[White "Kazmin_Semyon"]
[Black "Sattarov, Bobir"]
[Result "0-1"]
[Board "55"]
[TimeControl "180+1"]
[BlackFideId "14203081"]
[WhiteElo "2543"]
[BlackElo "2351"]
[BlackTeam "UZB"]
[WhiteClock "0:00:00"]
[BlackClock "0:00:26"]

1. e4 {[%clk 0:03:00]}  e5 {[%clk 0:02:59]} 2. Nf3 {[%clk 0:03:01]}  Nc6 {[%clk 0:02:59]} 3. Bc4 {[%clk 0:03:01]}  Bc5 {[%clk 0:02:59]} 4. c3 {[%clk 0:03:01]}  Qf6 {[%clk 0:03:00]} 5. d3 {[%clk 0:02:47]}  h6 {[%clk 0:02:59]} 6. Be3 {[%clk 0:02:46]}  d6 {[%clk 0:02:59]} 7. b4 {[%clk 0:02:42]}  Bb6 {[%clk 0:02:59]} 8. Nbd2 {[%clk 0:02:42]}  Nge7 {[%clk 0:02:59]} 9. a4 {[%clk 0:02:40]}  a6 {[%clk 0:02:59]} 10. Bxb6 {[%clk 0:02:40]}  cxb6 {[%clk 0:03:00]} 11. Nf1 {[%clk 0:02:39]}  Bg4 {[%clk 0:02:59]} 12. Ne3 {[%clk 0:02:38]}  Bd7 {[%clk 0:02:51]} 13. Nd5 {[%clk 0:02:24]}  Nxd5 {[%clk 0:02:51]} 14. Bxd5 {[%clk 0:02:25]}  O-O {[%clk 0:02:50]} 15. O-O {[%clk 0:02:24]}  Rac8 {[%clk 0:02:49]} 16. Qb3 {[%clk 0:02:17]}  Rc7 {[%clk 0:02:47]} 17. Nd2 {[%clk 0:02:17]}  Ne7 {[%clk 0:02:44]} 18. Nc4 {[%clk 0:02:09]}  Nxd5 {[%clk 0:02:43]} 19. exd5 {[%clk 0:02:10]}  b5 {[%clk 0:02:44]} 20. Nb6 {[%clk 0:02:03]}  bxa4 {[%clk 0:02:43]} 21. Nxa4 {[%clk 0:02:03]}  Qg6 {[%clk 0:02:37]} 22. Qc2 {[%clk 0:01:33]}  Rfc8 {[%clk 0:02:10]} 23. Nb6 {[%clk 0:01:30]}  Rxc3 {[%clk 0:02:07]} 24. Nxc8 {[%clk 0:01:27]}  Rxc8 {[%clk 0:01:52]} 25. Qd2 {[%clk 0:01:24]}  Bf5 {[%clk 0:01:38]} 26. Ra3 {[%clk 0:01:23]}  Qg4 {[%clk 0:01:36]} 27. f4 {[%clk 0:01:04]}  e4 {[%clk 0:01:33]} 28. dxe4 {[%clk 0:01:03]}  Bxe4 {[%clk 0:01:34]} 29. Rg3 {[%clk 0:01:02]}  Qf5 {[%clk 0:01:34]} 30. Rd1 {[%clk 0:00:44]}  f6 {[%clk 0:01:24]} 31. Qd4 {[%clk 0:00:32]}  Rc2 {[%clk 0:01:17]} 32. Re1 {[%clk 0:00:23]}  Bxd5 {[%clk 0:01:01]} 33. Re8+ {[%clk 0:00:18]}  Kf7 {[%clk 0:00:58]} 34. Qe3 {[%clk 0:00:18]}  Rc7 {[%clk 0:00:57]} 35. h3 {[%clk 0:00:13]}  h5 {[%clk 0:00:52]} 36. Rh8 {[%clk 0:00:12]}  Re7 {[%clk 0:00:50]} 37. Rxg7+ {[%clk 0:00:12]}  Kxg7 {[%clk 0:00:49]} 38. Qxe7+ {[%clk 0:00:13]}  Kxh8 {[%clk 0:00:48]} 39. Qf8+ {[%clk 0:00:11]}  Kh7 {[%clk 0:00:36]} 40. Qe7+ {[%clk 0:00:04]}  Kg6 {[%clk 0:00:33]} 41. Qxd6 {[%clk 0:00:05]}  Qe4 {[%clk 0:00:32]} 42. f5+ {[%clk 0:00:02]}  Kxf5 {[%clk 0:00:31]} 43. Qd7+ {[%clk 0:00:03]}  Kg6 {[%clk 0:00:31]} 44. Kf2 {[%clk 0:00:02]}  Qd4+ {[%clk 0:00:30]} 45. Kg3 {[%clk 0:00:01]}  Qe3+ {[%clk 0:00:27]} 46. Kh2 {[%clk 0:00:00]}  Qe4 {[%clk 0:00:26]} 0-1

[Event "November 21 Early 2023"]
[Site "https://www.chess.com"]
[Date "2023.11.21"]
[Round "10"]
[White "Yeletsky, Ivan"]
[Black "Ferreira, Vitor Hugo Vieira"]
[Result "1-0"]
[Board "56"]
[TimeControl "180+1"]
[WhiteFideId "24180327"]
[BlackFideId "2119765"]
[WhiteElo "2358"]
[BlackElo "2123"]
[WhiteTeam "RUS"]
[BlackTeam "BRA"]
[WhiteClock "0:00:06"]
[BlackClock "0:00:00"]

1. d4 {[%clk 0:03:00]}  d5 {[%clk 0:02:57]} 2. c4 {[%clk 0:03:01]}  c6 {[%clk 0:02:57]} 3. Nf3 {[%clk 0:03:01]}  Nf6 {[%clk 0:02:58]} 4. Nc3 {[%clk 0:03:02]}  e6 {[%clk 0:02:51]} 5. Bg5 {[%clk 0:02:58]}  Nbd7 {[%clk 0:02:51]} 6. e3 {[%clk 0:02:58]}  Qa5 {[%clk 0:02:50]} 7. Nd2 {[%clk 0:02:56]}  Bb4 {[%clk 0:02:39]} 8. Qc2 {[%clk 0:02:56]}  O-O {[%clk 0:02:24]} 9. Be2 {[%clk 0:02:54]}  dxc4 {[%clk 0:02:21]} 10. Bxf6 {[%clk 0:02:52]}  Nxf6 {[%clk 0:02:20]} 11. Nxc4 {[%clk 0:02:53]}  Qg5 {[%clk 0:02:17]} 12. O-O {[%clk 0:02:52]}  c5 {[%clk 0:02:12]} 13. a3 {[%clk 0:02:35]}  Bxc3 {[%clk 0:02:12]} 14. bxc3 {[%clk 0:02:36]}  cxd4 {[%clk 0:02:12]} 15. cxd4 {[%clk 0:02:37]}  b6 {[%clk 0:02:11]} 16. Bf3 {[%clk 0:02:29]}  Rb8 {[%clk 0:02:11]} 17. Ne5 {[%clk 0:02:27]}  Bb7 {[%clk 0:02:04]} 18. Bxb7 {[%clk 0:02:23]}  Rxb7 {[%clk 0:02:04]} 19. Rac1 {[%clk 0:02:23]}  Nd5 {[%clk 0:01:58]} 20. Qa4 {[%clk 0:01:37]}  h5 {[%clk 0:01:19]} 21. h3 {[%clk 0:01:35]}  Qe7 {[%clk 0:01:14]} 22. Qd1 {[%clk 0:01:22]}  g6 {[%clk 0:01:09]} 23. e4 {[%clk 0:01:22]}  Nf6 {[%clk 0:01:06]} 24. Qf3 {[%clk 0:01:22]}  Kg7 {[%clk 0:00:58]} 25. Nc6 {[%clk 0:01:22]}  Qd7 {[%clk 0:00:54]} 26. g4 {[%clk 0:01:22]}  hxg4 {[%clk 0:00:54]} 27. hxg4 {[%clk 0:01:23]}  Rc7 {[%clk 0:00:45]} 28. Ne5 {[%clk 0:01:12]}  Qxd4 {[%clk 0:00:45]} 29. Rxc7 {[%clk 0:01:10]}  Qxe5 {[%clk 0:00:45]} 30. Rxa7 {[%clk 0:01:05]}  Rh8 {[%clk 0:00:38]} 31. Rd1 {[%clk 0:00:56]}  Rh4 {[%clk 0:00:30]} 32. Kf1 {[%clk 0:00:56]}  Rxg4 {[%clk 0:00:29]} 33. Rdd7 {[%clk 0:00:26]}  Qb5+ {[%clk 0:00:17]} 34. Qd3 {[%clk 0:00:22]}  Qxd3+ {[%clk 0:00:06]} 35. Rxd3 {[%clk 0:00:23]}  Nxe4 {[%clk 0:00:07]} 36. Ke2 {[%clk 0:00:12]}  Rf4 {[%clk 0:00:07]} 37. f3 {[%clk 0:00:12]}  Nc5 {[%clk 0:00:07]} 38. Rc3 {[%clk 0:00:11]}  e5 {[%clk 0:00:05]} 39. Re7 {[%clk 0:00:09]}  e4 {[%clk 0:00:04]} 40. fxe4 {[%clk 0:00:10]}  Nxe4 {[%clk 0:00:05]} 41. Rc6 {[%clk 0:00:09]}  Nf6 {[%clk 0:00:01]} 42. Rd6 {[%clk 0:00:05]}  Nh5 {[%clk 0:00:02]} 43. Rxb6 {[%clk 0:00:05]}  Ra4 {[%clk 0:00:03]} 44. Rbb7 {[%clk 0:00:05]}  Nf4+ {[%clk 0:00:03]} 45. Kf3 {[%clk 0:00:05]}  Nd5 {[%clk 0:00:03]} 46. Rxf7+ {[%clk 0:00:06]}  Kh6 {[%clk 0:00:04]} 47. Ra7 {[%clk 0:00:06]}  Kg5 {[%clk 0:00:00]} 48. Rxa4 {[%clk 0:00:06]} 1-0

[Event "November 21 Early 2023"]
[Site "https://www.chess.com"]
[Date "2023.11.21"]
[Round "10"]
[White "Narayanan, Srinath"]
[Black "Khater, Sherif"]
[Result "1-0"]
[Board "57"]
[TimeControl "180+1"]
[WhiteFideId "5018420"]
[BlackFideId "2034280"]
[WhiteElo "2442"]
[BlackElo "2545"]
[WhiteTeam "IND"]
[BlackTeam "USA"]
[WhiteClock "0:00:27"]
[BlackClock "0:00:01"]

1. e4 {[%clk 0:03:00]}  a6 {[%clk 0:02:58]} 2. d4 {[%clk 0:03:00]}  c6 {[%clk 0:02:58]} 3. Nc3 {[%clk 0:03:00]}  d5 {[%clk 0:02:59]} 4. e5 {[%clk 0:02:59]}  Bf5 {[%clk 0:02:58]} 5. h3 {[%clk 0:02:59]}  e6 {[%clk 0:02:57]} 6. Bd3 {[%clk 0:03:00]}  Bxd3 {[%clk 0:02:57]} 7. Qxd3 {[%clk 0:03:01]}  Ne7 {[%clk 0:02:57]} 8. Nce2 {[%clk 0:03:01]}  Nf5 {[%clk 0:02:53]} 9. g4 {[%clk 0:02:59]}  Nh4 {[%clk 0:02:51]} 10. Nf3 {[%clk 0:02:56]}  Nxf3+ {[%clk 0:02:51]} 11. Qxf3 {[%clk 0:02:57]}  c5 {[%clk 0:02:50]} 12. c3 {[%clk 0:02:57]}  Nc6 {[%clk 0:02:50]} 13. O-O {[%clk 0:02:54]}  h5 {[%clk 0:02:47]} 14. g5 {[%clk 0:02:50]}  g6 {[%clk 0:02:43]} 15. h4 {[%clk 0:02:49]}  Bg7 {[%clk 0:02:22]} 16. Be3 {[%clk 0:02:45]}  cxd4 {[%clk 0:02:20]} 17. cxd4 {[%clk 0:02:46]}  Ne7 {[%clk 0:02:20]} 18. Ng3 {[%clk 0:02:44]}  Qd7 {[%clk 0:02:17]} 19. Rac1 {[%clk 0:02:42]}  O-O {[%clk 0:02:14]} 20. Bd2 {[%clk 0:02:39]}  Rac8 {[%clk 0:02:14]} 21. Bb4 {[%clk 0:02:40]}  Rfe8 {[%clk 0:02:05]} 22. Bxe7 {[%clk 0:02:33]}  Qxe7 {[%clk 0:02:05]} 23. Qb3 {[%clk 0:02:32]}  Bf8 {[%clk 0:01:57]} 24. Ne2 {[%clk 0:02:31]}  Qb4 {[%clk 0:01:55]} 25. Qxb4 {[%clk 0:02:15]}  Bxb4 {[%clk 0:01:56]} 26. Rfd1 {[%clk 0:02:15]}  Kf8 {[%clk 0:01:53]} 27. Kg2 {[%clk 0:02:15]}  Ke7 {[%clk 0:01:53]} 28. Kf3 {[%clk 0:02:16]}  Kd7 {[%clk 0:01:53]} 29. Ke3 {[%clk 0:02:16]}  b5 {[%clk 0:01:51]} 30. Nf4 {[%clk 0:02:14]}  Be7 {[%clk 0:01:41]} 31. Nd3 {[%clk 0:02:14]}  Rxc1 {[%clk 0:01:38]} 32. Rxc1 {[%clk 0:02:15]}  Rc8 {[%clk 0:01:35]} 33. Rxc8 {[%clk 0:02:15]}  Kxc8 {[%clk 0:01:36]} 34. Kd2 {[%clk 0:02:14]}  Kc7 {[%clk 0:01:36]} 35. Kc3 {[%clk 0:02:14]}  Kb6 {[%clk 0:01:36]} 36. Kb3 {[%clk 0:02:13]}  a5 {[%clk 0:01:35]} 37. a4 {[%clk 0:02:14]}  Kc6 {[%clk 0:01:29]} 38. Nc1 {[%clk 0:02:08]}  Kb6 {[%clk 0:01:27]} 39. Na2 {[%clk 0:02:07]}  b4 {[%clk 0:01:12]} 40. Nc1 {[%clk 0:02:06]}  Bf8 {[%clk 0:01:11]} 41. Kc2 {[%clk 0:02:05]}  Kc6 {[%clk 0:01:11]} 42. Kd3 {[%clk 0:02:04]}  Be7 {[%clk 0:01:09]} 43. Ke3 {[%clk 0:02:03]}  Bd8 {[%clk 0:01:07]} 44. Nb3 {[%clk 0:02:00]}  Bb6 {[%clk 0:01:07]} 45. Kd3 {[%clk 0:02:00]}  Kd7 {[%clk 0:01:07]} 46. Nd2 {[%clk 0:01:55]}  Kc7 {[%clk 0:01:07]} 47. Nf1 {[%clk 0:01:55]}  Kc6 {[%clk 0:01:07]} 48. Ne3 {[%clk 0:01:55]}  Kd7 {[%clk 0:01:08]} 49. Ng2 {[%clk 0:01:54]}  Kc6 {[%clk 0:01:08]} 50. Nf4 {[%clk 0:01:54]}  Kd7 {[%clk 0:01:08]} 51. Ke3 {[%clk 0:01:54]}  Kc6 {[%clk 0:01:08]} 52. Nd3 {[%clk 0:01:55]}  Kc7 {[%clk 0:01:05]} 53. Ne1 {[%clk 0:01:41]}  Kd7 {[%clk 0:01:04]} 54. Kd3 {[%clk 0:01:41]}  Kc7 {[%clk 0:01:03]} 55. Ng2 {[%clk 0:01:42]}  Kd7 {[%clk 0:01:03]} 56. Ne3 {[%clk 0:01:42]}  Kc7 {[%clk 0:01:03]} 57. f4 {[%clk 0:01:42]}  Kd7 {[%clk 0:01:03]} 58. f5 {[%clk 0:01:36]}  gxf5 {[%clk 0:00:45]} 59. Ng2 {[%clk 0:01:36]}  Ke7 {[%clk 0:00:42]} 60. Nf4 {[%clk 0:01:36]}  Kf8 {[%clk 0:00:42]} 61. Nxh5 {[%clk 0:01:36]}  Bd8 {[%clk 0:00:41]} 62. Ke3 {[%clk 0:01:25]}  Kg8 {[%clk 0:00:36]} 63. Ng3 {[%clk 0:01:06]}  Bb6 {[%clk 0:00:35]} 64. h5 {[%clk 0:01:03]}  f4+ {[%clk 0:00:33]} 65. Kxf4 {[%clk 0:01:03]}  Bxd4 {[%clk 0:00:34]} 66. b3 {[%clk 0:01:03]}  Bb2 {[%clk 0:00:30]} 67. Ne2 {[%clk 0:01:02]}  Kg7 {[%clk 0:00:30]} 68. Ng1 {[%clk 0:00:55]}  Bc1+ {[%clk 0:00:29]} 69. Kg4 {[%clk 0:00:55]}  Bb2 {[%clk 0:00:29]} 70. Nf3 {[%clk 0:00:54]}  Bc3 {[%clk 0:00:30]} 71. Kf4 {[%clk 0:00:44]}  Bb2 {[%clk 0:00:28]} 72. Ke3 {[%clk 0:00:44]}  Bc3 {[%clk 0:00:26]} 73. Nd4 {[%clk 0:00:27]}  Bxd4+ {[%clk 0:00:21]} 74. Kxd4 {[%clk 0:00:28]}  Kh7 {[%clk 0:00:22]} 75. Kc5 {[%clk 0:00:27]}  Kg7 {[%clk 0:00:01]} 76. Kb5 {[%clk 0:00:27]} 1-0

[Event "November 21 Early 2023"]
[Site "https://www.chess.com"]
[Date "2023.11.21"]
[Round "10"]
[White "Graca, Robert"]
[Black "Krzyzanowski, Marcin"]
[Result "0-1"]
[Board "59"]
[TimeControl "180+1"]
[WhiteFideId "644943"]
[BlackFideId "1132199"]
[WhiteElo "2204"]
[BlackElo "2471"]
[WhiteTeam "FRA"]
[BlackTeam "POL"]
[WhiteClock "0:00:11"]
[BlackClock "0:00:57"]

1. Nf3 {[%clk 0:03:00]}  d5 {[%clk 0:02:56]} 2. d4 {[%clk 0:03:01]}  Nf6 {[%clk 0:02:55]} 3. c4 {[%clk 0:03:01]}  e6 {[%clk 0:02:54]} 4. Bg5 {[%clk 0:03:01]}  dxc4 {[%clk 0:02:52]} 5. Nc3 {[%clk 0:03:00]}  h6 {[%clk 0:02:50]} 6. Bxf6 {[%clk 0:02:55]}  Qxf6 {[%clk 0:02:51]} 7. e4 {[%clk 0:02:55]}  a6 {[%clk 0:02:36]} 8. Bxc4 {[%clk 0:02:49]}  b5 {[%clk 0:02:33]} 9. Bd3 {[%clk 0:02:42]}  Bb7 {[%clk 0:02:33]} 10. O-O {[%clk 0:02:42]}  Qd8 {[%clk 0:02:26]} 11. d5 {[%clk 0:02:29]}  exd5 {[%clk 0:02:12]} 12. exd5 {[%clk 0:02:30]}  Be7 {[%clk 0:02:12]} 13. Re1 {[%clk 0:02:16]}  O-O {[%clk 0:02:11]} 14. Qe2 {[%clk 0:02:16]}  Bf6 {[%clk 0:02:10]} 15. Ne5 {[%clk 0:02:02]}  Re8 {[%clk 0:02:00]} 16. f4 {[%clk 0:02:02]}  Nd7 {[%clk 0:01:55]} 17. Qh5 {[%clk 0:01:41]}  Bxe5 {[%clk 0:01:38]} 18. fxe5 {[%clk 0:01:35]}  Qg5 {[%clk 0:01:37]} 19. Qxg5 {[%clk 0:01:23]}  hxg5 {[%clk 0:01:38]} 20. e6 {[%clk 0:01:24]}  fxe6 {[%clk 0:01:35]} 21. dxe6 {[%clk 0:01:16]}  Nc5 {[%clk 0:01:35]} 22. Bf5 {[%clk 0:01:15]}  Kf8 {[%clk 0:01:30]} 23. b4 {[%clk 0:01:01]}  g6 {[%clk 0:01:18]} 24. bxc5 {[%clk 0:00:20]}  gxf5 {[%clk 0:01:18]} 25. Re5 {[%clk 0:00:21]}  f4 {[%clk 0:01:07]} 26. Rae1 {[%clk 0:00:20]}  Ke7 {[%clk 0:01:04]} 27. Rxg5 {[%clk 0:00:20]}  Rg8 {[%clk 0:01:05]} 28. Nd5+ {[%clk 0:00:15]}  Bxd5 {[%clk 0:01:03]} 29. Rxd5 {[%clk 0:00:16]}  Rad8 {[%clk 0:01:01]} 30. Rf5 {[%clk 0:00:10]}  Rd2 {[%clk 0:00:59]} 31. Rf7+ {[%clk 0:00:10]}  Ke8 {[%clk 0:00:58]} 32. Rxf4 {[%clk 0:00:10]}  Rgxg2+ {[%clk 0:00:57]} 33. Kf1 {[%clk 0:00:11]}  Rxh2 {[%clk 0:00:57]} 34. Kg1 {[%clk 0:00:11]}  Rdg2+ {[%clk 0:00:56]} 35. Kf1 {[%clk 0:00:11]}  Rxa2 {[%clk 0:00:57]} 36. e7 {[%clk 0:00:11]}  Rh1# {[%clk 0:00:57]} 0-1

[Event "November 21 Early 2023"]
[Site "https://www.chess.com"]
[Date "2023.11.21"]
[Round "10"]
[White "Timerkhanov, Alexander"]
[Black "NovoselovRoman"]
[Result "1-0"]
[Board "60"]
[TimeControl "180+1"]
[WhiteFideId "24177938"]
[WhiteElo "2278"]
[BlackElo "2532"]
[WhiteTeam "RUS"]
[WhiteClock "0:00:34"]
[BlackClock "0:00:00"]

1. d4 {[%clk 0:03:00]}  d5 {[%clk 0:02:56]} 2. Bf4 {[%clk 0:02:59]}  e6 {[%clk 0:02:55]} 3. e3 {[%clk 0:02:59]}  Bd6 {[%clk 0:02:56]} 4. Bg3 {[%clk 0:03:00]}  Ne7 {[%clk 0:02:56]} 5. Bd3 {[%clk 0:03:00]}  c5 {[%clk 0:02:56]} 6. c3 {[%clk 0:02:59]}  Nbc6 {[%clk 0:02:56]} 7. Nf3 {[%clk 0:02:57]}  f6 {[%clk 0:02:39]} 8. Nbd2 {[%clk 0:02:53]}  e5 {[%clk 0:02:38]} 9. dxe5 {[%clk 0:02:54]}  fxe5 {[%clk 0:02:37]} 10. e4 {[%clk 0:02:47]}  d4 {[%clk 0:02:28]} 11. Bc4 {[%clk 0:02:34]}  Bg4 {[%clk 0:02:22]} 12. h3 {[%clk 0:02:33]}  Bh5 {[%clk 0:02:22]} 13. Qa4 {[%clk 0:02:27]}  a6 {[%clk 0:02:05]} 14. Qc2 {[%clk 0:02:23]}  h6 {[%clk 0:02:00]} 15. a4 {[%clk 0:02:22]}  Rb8 {[%clk 0:01:46]} 16. O-O {[%clk 0:02:12]}  Bc7 {[%clk 0:01:37]} 17. cxd4 {[%clk 0:02:08]}  exd4 {[%clk 0:01:26]} 18. e5 {[%clk 0:02:05]}  Bg6 {[%clk 0:01:11]} 19. Bd3 {[%clk 0:01:54]}  Bxd3 {[%clk 0:01:09]} 20. Qxd3 {[%clk 0:01:55]}  O-O {[%clk 0:01:09]} 21. Ne4 {[%clk 0:01:56]}  b6 {[%clk 0:00:55]} 22. Nd6 {[%clk 0:01:45]}  Nxe5 {[%clk 0:00:45]} 23. Nxe5 {[%clk 0:01:37]}  Bxd6 {[%clk 0:00:44]} 24. Qc4+ {[%clk 0:01:37]}  Kh7 {[%clk 0:00:43]} 25. Nf7 {[%clk 0:01:37]}  Rxf7 {[%clk 0:00:30]} 26. Qxf7 {[%clk 0:01:38]}  Ng6 {[%clk 0:00:24]} 27. Rae1 {[%clk 0:01:30]}  Bxg3 {[%clk 0:00:22]} 28. fxg3 {[%clk 0:01:31]}  Qg5 {[%clk 0:00:22]} 29. g4 {[%clk 0:00:56]}  Rf8 {[%clk 0:00:22]} 30. Qc4 {[%clk 0:00:53]}  Rxf1+ {[%clk 0:00:20]} 31. Rxf1 {[%clk 0:00:54]}  Qe3+ {[%clk 0:00:21]} 32. Kh1 {[%clk 0:00:52]}  d3 {[%clk 0:00:21]} 33. Qc3 {[%clk 0:00:36]}  d2 {[%clk 0:00:13]} 34. Rd1 {[%clk 0:00:35]}  Nf4 {[%clk 0:00:00]} 35. Qxe3 {[%clk 0:00:34]} 1-0